bitfinex-derivatives/quotes_ETHF0:USTF0_20251008
["timestamp","ask_amount","ask_price","bid_price","bid_amount"]
[1759896600017,0.61115,4435.0,4434.9,0.7888]
[1759896600210,0.83715,4435.0,4434.9,0.7888]
[1759896600512,3.95232819,4435.0,4434.9,0.7888]
[1759896602415,4.02072819,4435.0,4434.9,0.5655]
[1759896602611,4.02072819,4435.0,4434.1,0.40573]
[1759896602612,0.2944,4434.3,4434.1,1.2115258]
[1759896602811,0.4116,4434.4,4433.8,1.2115258]
[1759896602812,0.81736,4433.9,4433.8,1.2115258]
[1759896603014,0.61127,4433.7,4433.6,1.4394258]
[1759896603214,0.61127,4433.7,4433.6,0.7888]
[1759896603411,0.40577,4433.7,4433.6,0.7888]
[1759896603814,3.2078,4434.4,4434.2,0.3376]
[1759896604013,3.2078,4434.4,4434.3,0.7888]
[1759896604316,3.61351,4434.4,4434.3,0.7888]
[1759896604514,0.40571,4434.4,4434.3,2.00189612]
[1759896604821,0.40571,4434.4,4434.3,2.00198808]
[1759896605018,0.61119,4434.6,4434.5,0.3631]
[1759896605319,0.61119,4434.6,4433.7,1.21327175]
[1759896605320,0.4255,4433.8,4433.7,1.21327175]
[1759896605611,3.2078,4434.6,4434.5,0.135]
[1759896605810,4.55959,4434.6,4434.5,0.545]
[1759896606010,4.55959,4434.6,4433.5,0.3630752]
[1759896606011,1.01433,4434.2,4433.7,1.21340827]
[1759896606212,0.40576,4433.9,4433.7,1.21340827]
[1759896606413,0.40577,4433.7,4433.5,0.0018752]
[1759896606614,0.4255,4433.6,4433.5,0.0018752]
[1759896607013,3.09988174,4433.6,4433.5,0.0018752]
[1759896607209,3.39448174,4433.6,4433.5,0.0018752]
[1759896609226,8.39448174,4433.6,4433.5,0.0018752]
[1759896610514,8.39448174,4433.6,4431.9,1.6171268]
[1759896610515,0.2927,4433.4,4432.3,1.21340827]
[1759896610718,0.4059,4432.3,4432.2,1.53460827]
[1759896610923,0.4059,4432.3,4432.1,1.21340827]
[1759896611121,3.28153154,4432.3,4432.2,0.3212]
[1759896611420,3.61367,4432.6,4432.5,0.135]
[1759896611721,7.10388875,4432.6,4432.5,0.00232235]
[1759896612627,6.81118875,4432.6,4432.5,0.32352235]
[1759896613320,7.10388875,4432.6,4432.5,0.00232235]
[1759896613923,6.58518875,4432.6,4432.5,0.32352235]
[1759896614124,3.84132515,4432.6,4432.5,0.45852235]
[1759896614424,0.92622515,4432.6,4432.5,0.32352235]
[1759896614619,3.821123,4432.6,4432.5,0.00232235]
[1759896615826,4.246623,4432.6,4432.5,0.00232235]
[1759896616822,0.2133,4431.7,4431.6,1.21340827]
[1759896617130,3.2078,4430.8,4427.9,6.48175562]
[1759896617323,13.32953248,4428.0,4426.5,0.17807741]
[1759896617521,10.16361,4425.4,4423.7,1.80609068]
[1759896617720,10.16361,4425.4,4417.9,0.42985544]
[1759896617721,10.16668,4424.1,4420.2,35.195]
[1759896617926,1.59335318,4423.2,4422.5,0.135]
[1759896618121,0.76122394,4423.1,4423.0,0.135]
[1759896618436,0.00168164,4424.1,4423.9,2.01935936]
[1759896618641,4.15634039,4424.0,4423.8,0.135]
[1759896618839,0.69881889,4423.9,4423.8,0.135]
[1759896619040,0.92481889,4423.9,4423.8,0.135]
[1759896619236,1.10548889,4423.9,4423.8,0.135]
[1759896619441,3.68382635,4423.9,4423.8,1.36444895]
[1759896619640,1.59335318,4426.3,4423.8,1.36444895]
[1759896619641,3.2078,4424.7,4423.8,5.4562]
[1759896619831,0.227,4424.6,4424.5,0.3212]
[1759896620142,0.40662,4424.5,4424.4,0.135]
[1759896620342,3.17193248,4424.3,4423.8,0.135]
[1759896620542,3.2078,4424.4,4423.8,0.135]
[1759896620842,3.2078,4423.9,4423.8,0.13727216]
[1759896621040,0.00283291,4424.4,4424.3,2.01935936]
[1759896621338,2.88194552,4424.4,4424.3,2.01935936]
[1759896621538,0.00283291,4424.4,4424.3,5.0]
[1759896621938,0.00283291,4424.4,4423.9,0.227]
[1759896622129,0.00283291,4424.4,4424.3,2.34055936]
[1759896622130,3.00061855,4424.4,4424.3,2.34055936]
[1759896622338,3.00061855,4424.4,4424.3,0.3212]
[1759896622541,0.00283291,4424.4,4424.3,5.3212]
[1759896623440,3.2078,4425.1,4425.0,0.4562]
[1759896623638,3.2078,4425.6,4425.5,0.4562]
[1759896623942,3.2078,4426.1,4425.5,0.4562]
[1759896624143,3.2078,4426.1,4426.0,0.4562]
[1759896624443,6.75195953,4426.1,4426.0,0.42989061]
[1759896625250,6.11848953,4426.1,4426.0,2.44924997]
[1759896625538,6.34548953,4426.1,4426.0,2.44924997]
[1759896625930,6.34548953,4426.1,4426.0,0.42989061]
[1759896627041,6.11848953,4426.1,4426.0,0.42989061]
[1759896627244,6.34548953,4426.1,4426.0,0.42989061]
[1759896627447,14.51742201,4426.1,4426.0,6.1e-07]
[1759896627743,9.29042201,4426.1,4426.0,6.1e-07]
[1759896627942,9.51742201,4426.1,4426.0,6.1e-07]
[1759896628344,14.51742201,4426.1,4426.0,6.1e-07]
[1759896628946,0.40652,4425.6,4425.5,6.1e-07]
[1759896629147,0.40656,4425.1,4425.0,6.1e-07]
[1759896629339,7.01329248,4425.1,4425.0,6.1e-07]
[1759896629542,14.96222026,4425.1,4425.0,6.1e-07]
[1759896630542,14.32866026,4425.1,4425.0,6.1e-07]
[1759896630744,14.32866026,4425.1,4423.7,2.01935936]
[1759896630745,0.40668,4423.8,4423.7,2.01935936]
[1759896631049,0.40675,4423.1,4423.0,0.135]
[1759896631248,3.84155,4423.1,4423.0,0.135]
[1759896631443,6.73565889,4423.1,4423.0,0.135]
[1759896631643,7.11660141,4423.1,4423.0,0.4562]
[1759896631842,7.11660141,4423.1,4423.0,0.45818179]
[1759896632044,7.34360141,4423.1,4423.0,0.45818179]
[1759896632246,0.40684,4422.1,4422.0,0.4562]
[1759896632451,0.40688,4421.6,4421.5,0.135]
[1759896632644,3.84168,4421.6,4421.5,0.135]
[1759896632840,0.40692,4421.2,4421.1,0.3212]
[1759896633045,0.40692,4421.2,4421.0,3.519e-05]
[1759896633241,3.2078,4421.1,4419.5,0.135]
[1759896633445,0.46584,4421.0,4420.9,2.01935936]
[1759896633639,0.40702,4420.2,4419.3,1.99565012]
[1759896633848,3.2078,4420.5,4419.6,0.135]
[1759896634047,3.4068,4420.5,4419.6,0.135]
[1759896634253,3.2078,4419.8,4419.6,0.135]
[1759896634451,3.2078,4420.3,4419.6,0.13674112]
[1759896634649,3.2078,4419.3,4418.3,3.2078]
[1759896634849,3.2078,4419.6,4418.4,3.3428]
[1759896635146,3.2078,4420.7,4420.2,0.2033]
[1759896635350,3.2078,4420.7,4420.3,0.3339]
[1759896635550,0.227,4421.0,4420.3,0.3339]
[1759896635551,2.99850906,4420.8,4420.6,2.01935936]
[1759896635852,3.21002267,4421.2,4420.9,2.01935936]
[1759896636046,0.227,4421.1,4420.3,0.00215498]
[1759896636242,0.1941,4420.2,4418.7,3.2078]
[1759896636443,3.2078,4420.3,4418.6,3.2078]
[1759896636648,2.9675337,4420.1,4419.6,3.4111]
[1759896636946,3.2078,4420.3,4419.6,3.4111]
[1759896636947,2.9675337,4420.3,4420.2,2.01935936]
[1759896637148,0.227,4420.6,4420.2,2.01935936]
[1759896637351,0.407,4420.4,4420.2,0.00219642]
[1759896637553,2.91662469,4420.5,4420.2,0.00219642]
[1759896637753,3.5398,4420.3,4420.2,0.00219642]
[1759896638147,6.68342469,4420.3,4420.2,0.00219642]
[1759896638355,7.09042469,4420.3,4420.2,0.00219642]
[1759896638549,6.68342469,4420.3,4420.2,2.02155578]
[1759896638747,6.12442469,4420.3,4420.2,2.02155578]
[1759896638948,3.2078,4420.8,4420.2,2.02155578]
[1759896639154,3.2078,4420.8,4420.7,2.01935936]
[1759896639544,3.4348,4420.8,4420.7,2.01935936]
[1759896639745,3.2078,4420.8,4420.7,2.01935936]
[1759896639950,3.4348,4420.8,4420.4,0.3339]
[1759896640159,6.58257048,4420.8,4420.7,2.01935936]
[1759896640362,6.80957048,4420.8,4420.7,2.01935936]
[1759896640565,0.00222267,4421.2,4420.7,2.49895936]
[1759896640758,0.00222267,4421.2,4421.1,2.90588936]
[1759896641060,0.00222267,4421.2,4421.1,2.49895936]
[1759896641258,0.00222267,4421.2,4421.1,0.4796]
[1759896641649,0.4928,4421.8,4421.5,0.4796]
[1759896641650,3.2078,4421.8,4421.5,0.4796]
[1759896641860,3.2078,4421.8,4420.9,0.227]
[1759896641861,0.40689,4421.5,4420.9,0.227]
[1759896642059,0.40693,4421.1,4420.2,0.60480642]
[1759896642255,3.2078,4420.6,4420.2,0.48179642]
[1759896642453,0.4928,4420.5,4420.2,0.00219642]
[1759896642658,0.4928,4420.3,4420.2,0.00219642]
[1759896643363,3.37256108,4420.3,4420.2,0.00219642]
[1759896643553,4.20950991,4420.3,4420.2,0.00219642]
[1759896643753,3.98150991,4420.3,4420.2,0.00219642]
[1759896644149,4.20950991,4420.3,4420.2,0.00219642]
[1759896645056,2.87976108,4420.3,4420.2,0.48179642]
[1759896645252,0.00203607,4420.5,4420.3,0.4796]
[1759896645558,3.2078,4421.3,4421.0,0.40694]
[1759896645757,3.2078,4421.3,4421.2,2.49895936]
[1759896646478,3.2078,4421.3,4421.2,7.49895936]
[1759896646654,3.2078,4421.3,4421.2,2.49895936]
[1759896646655,3.2099692,4421.3,4421.2,2.49895936]
[1759896647256,3.77629947,4421.3,4421.2,2.49895936]
[1759896647451,3.77629947,4421.3,4421.2,2.01935936]
[1759896647650,3.77629947,4421.3,4421.2,2.90587936]
[1759896647948,3.2099692,4421.3,4421.2,2.49895936]
[1759896648349,3.77081463,4421.3,4421.2,2.49895936]
[1759896648752,0.0021692,4421.3,4421.2,7.49895936]
[1759896649453,0.0021692,4421.3,4421.2,7.72695936]
[1759896649655,3.2078,4422.9,4422.7,0.40677]
[1759896649853,3.2078,4422.9,4421.2,0.4796]
[1759896649854,0.1907,4422.5,4421.2,0.4796]
[1759896650054,3.2078,4421.4,4421.3,0.4796]
[1759896650659,3.21007935,4421.4,4421.3,0.4796]
[1759896651456,0.00227935,4421.4,4421.3,0.4796]
[1759896651658,0.4928,4421.3,4419.8,0.40704]
[1759896651858,0.4928,4420.3,4419.0,0.4796]
[1759896652056,3.2078,4419.9,4419.0,0.40711]
[1759896652259,3.2078,4419.4,4418.8,0.4796]
[1759896652460,3.2078,4418.9,4418.8,0.4796]
[1759896652655,3.2078,4418.9,4418.6,0.228]
[1759896652860,3.2078,4418.9,4418.6,0.00243528]
[1759896652861,6.19905178,4418.9,4418.6,0.00243528]
[1759896653059,0.4928,4418.8,4418.6,0.00243528]
[1759896653455,3.63591567,4418.7,4417.9,0.02263544]
[1759896653662,4.10782,4418.0,4417.9,0.02263544]
[1759896653862,4.10782,4418.0,4416.5,3.2078]
[1759896653863,0.1853,4417.8,4415.8,4.09481]
[1759896654066,3.2078,4416.7,4415.9,0.40741]
[1759896654364,3.2078,4417.2,4416.8,0.40733]
[1759896654557,3.20977574,4417.2,4417.1,2.49895936]
[1759896654759,3.20977574,4417.2,4416.6,0.1956]
[1759896654760,3.20977574,4417.2,4416.6,0.4236]
[1759896654963,3.20977574,4417.2,4417.1,2.49895936]
[1759896655161,0.4928,4417.1,4415.8,3.2078]
[1759896655363,3.2078,4416.2,4416.0,0.4796]
[1759896655667,3.2078,4416.8,4416.1,0.4796]
[1759896655864,3.2078,4416.8,4416.1,0.88699]
[1759896656068,3.2078,4416.8,4416.7,2.01935936]
[1759896656267,3.9286,4416.8,4415.9,0.00243032]
[1759896656569,3.7006,4416.0,4415.9,0.00243032]
[1759896656762,3.9286,4416.0,4415.9,0.00243032]
[1759896656967,6.81932415,4416.0,4415.9,0.00243032]
[1759896657166,0.4928,4415.6,4414.4,3.6874]
[1759896657364,0.4928,4415.6,4413.6,0.40762]
[1759896657365,0.4928,4414.6,4413.4,3.2078]
[1759896657569,3.2078,4414.3,4413.3,0.18111029]
[1759896657873,0.40758,4414.1,4413.0,40.8]
[1759896658067,0.4928,4414.1,4414.0,2.01935936]
[1759896658269,0.00246198,4414.1,4414.0,2.02143053]
[1759896658469,4.0,4415.0,4414.3,0.4796]
[1759896658665,4.0,4415.0,4414.4,3.2078]
[1759896658862,4.0,4415.0,4414.0,0.00207117]
[1759896658863,0.4928,4414.6,4414.0,0.00207117]
[1759896659067,0.229,4414.5,4414.0,0.00207117]
[1759896659266,3.67255409,4414.5,4414.0,0.00207117]
[1759896659466,3.44614346,4414.5,4414.0,0.00207117]
[1759896659675,0.4928,4415.4,4414.4,2.49895936]
[1759896659871,3.2078,4415.8,4414.9,2.49895936]
[1759896660074,3.56334933,4415.0,4414.9,2.69455936]
[1759896660576,3.56334933,4415.0,4414.9,2.49895936]
[1759896660772,3.56334933,4415.0,4414.1,0.4796]
[1759896660773,0.4928,4414.9,4414.1,0.4796]
[1759896661069,0.4928,4414.9,4414.2,2.01935936]
[1759896661070,0.4928,4414.5,4414.2,2.01935936]
[1759896661274,0.229,4414.5,4414.1,2.01935936]
[1759896661578,2.94441276,4414.4,4414.0,0.48167117]
[1759896661869,0.229,4414.5,4414.4,0.4796]
[1759896661870,3.2078,4414.5,4414.4,0.4796]
[1759896662071,0.50380318,4415.0,4414.9,1.0827]
[1759896662368,35.8038,4416.9,4414.9,1.0827]
[1759896662369,3.2078,4415.9,4414.9,3.2078]
[1759896662577,0.4928,4416.9,4415.8,3.2078]
[1759896662779,3.2078,4417.2,4416.5,0.40735]
[1759896662780,3.0092072,4416.8,4416.5,0.40735]
[1759896662965,3.0092072,4416.8,4416.1,2.77819544]
[1759896662966,0.4928,4416.7,4416.6,0.229]
[1759896663168,0.4928,4416.7,4414.6,11.20707]
[1759896663169,0.4928,4416.6,4414.9,3.2078]
[1759896663372,0.4928,4416.6,4416.4,0.40736]
[1759896663680,0.00244806,4416.7,4416.4,0.40736]
[1759896663977,0.00244806,4416.7,4416.4,3.18555544]
[1759896664173,3.2078,4418.2,4417.3,1.0182]
[1759896664483,3.2078,4418.2,4416.5,15.18391]
[1759896664484,3.39594165,4419.0,4418.1,3.615]
[1759896664676,2.58238882,4419.0,4418.7,3.61495]
[1759896664973,0.1907,4419.8,4418.8,0.229]
[1759896665283,3.7043,4419.0,4418.8,0.00219584]
[1759896665476,0.229,4418.9,4418.8,0.00219584]
[1759896665672,3.42148653,4418.9,4418.8,0.00219584]
[1759896665974,0.2137,4418.4,4417.7,3.2078]
[1759896666278,0.4965,4418.2,4417.1,3.4368]
[1759896666477,0.4965,4418.9,4418.4,0.40718]
[1759896666674,0.2137,4419.1,4418.3,3.2078]
[1759896666870,0.2137,4419.1,4418.8,3.2078]
[1759896667070,0.2137,4419.1,4418.8,3.20968302]
[1759896667278,0.4965,4419.7,4419.4,0.40709]
[1759896667570,0.00185623,4419.8,4419.7,0.40706]
[1759896667775,3.2078,4420.4,4419.7,5.0]
[1759896667978,3.9333,4420.4,4419.4,3.2078]
[1759896668279,0.4965,4419.8,4418.8,0.00188302]
[1759896668578,0.2137,4419.2,4418.8,0.00188302]
[1759896668884,0.4965,4419.0,4418.8,0.00188302]
[1759896669076,0.40715,4418.7,4416.1,1.01848]
[1759896669282,0.4965,4418.6,4417.8,3.61503]
[1759896669579,0.21645742,4419.2,4418.3,3.2078]
[1759896669771,3.2078,4418.9,4417.8,3.2078]
[1759896670073,0.21645742,4419.2,4418.6,0.40715]
[1759896670272,0.21645742,4419.2,4418.8,0.40714]
[1759896670468,0.00275742,4419.2,4419.0,0.40712]
[1759896670677,0.00275742,4419.2,4419.0,0.63612]
[1759896670884,0.00275742,4419.2,4419.1,5.0]
[1759896671681,0.00275742,4419.2,4419.1,5.229]
[1759896671978,0.4965,4420.3,4419.1,6.24679]
[1759896672175,0.4965,4420.7,4419.9,0.40704]
[1759896672374,0.4965,4420.7,4419.1,1.24679]
[1759896672375,0.2137,4420.0,4419.2,0.229]
[1759896672571,0.2137,4420.0,4419.2,0.6361]
[1759896672774,0.4965,4419.8,4419.1,3.2078]
[1759896672978,0.4965,4419.7,4419.1,3.61492]
[1759896673177,0.00234022,4419.8,4419.6,3.61486]
[1759896673473,0.00234022,4419.8,4419.6,0.63606]
[1759896673780,0.00234022,4419.8,4419.2,3.2078]
[1759896673973,3.4215,4420.8,4419.7,3.2078]
[1759896674276,3.2078,4420.8,4420.6,0.40697]
[1759896674577,3.2078,4421.3,4421.1,0.40693]
[1759896674779,0.7102,4421.6,4421.4,0.4069]
[1759896674982,0.4965,4421.5,4420.5,40.8]
[1759896675182,0.2137,4420.5,4419.2,3.2078]
[1759896675479,0.4965,4419.9,4419.2,3.2078]
[1759896675681,0.4965,4419.9,4419.3,41.029]
[1759896676077,3.2078,4420.0,4419.5,0.40708]
[1759896676284,3.2078,4420.0,4419.4,0.229]
[1759896676580,3.2078,4419.5,4419.3,0.00209414]
[1759896677079,3.7043,4420.0,4419.3,0.00209414]
[1759896677376,3.7043,4419.4,4419.3,0.00209414]
[1759896677574,0.4965,4419.4,4419.3,0.23109414]
[1759896677774,3.2078,4419.9,4419.3,0.23109414]
[1759896677982,3.2078,4419.9,4419.5,0.40707]
[1759896678174,3.2078,4419.9,4419.6,0.229]
[1759896678576,3.2078,4419.9,4419.7,0.40706]
[1759896679478,0.2137,4419.8,4419.3,0.00209414]
[1759896679676,2.88073458,4419.8,4419.3,0.00209414]
[1759896679871,3.2078,4419.9,4419.3,0.00209414]
[1759896679872,3.2078,4419.9,4419.3,0.23109414]
[1759896680076,3.2078,4419.9,4419.4,40.8]
[1759896680282,0.62075,4419.8,4419.3,0.00209414]
[1759896680481,0.2137,4419.8,4419.3,0.00209414]
[1759896680677,0.2137,4419.8,4419.5,0.40707]
[1759896680888,3.2078,4419.9,4419.5,0.40707]
[1759896681179,3.2078,4419.9,4419.5,0.229]
[1759896681384,3.2078,4420.4,4420.2,0.40701]
[1759896681884,3.2078,4421.0,4420.8,0.40695]
[1759896682081,3.2078,4421.0,4420.1,3.4368]
[1759896682276,3.2078,4421.0,4420.2,1.01754]
[1759896682481,3.2078,4421.0,4420.1,3.4368]
[1759896682684,3.2078,4421.0,4420.8,0.40695]
[1759896683092,0.4965,4421.5,4420.9,0.229]
[1759896683093,4.1112,4421.5,4420.9,0.229]
[1759896683381,0.4965,4421.3,4420.9,0.229]
[1759896683581,0.2137,4421.4,4420.9,0.229]
[1759896683887,1.11722,4420.2,4418.9,3.2078]
[1759896684082,0.4965,4419.6,4419.4,0.229]
[1759896684480,5.40708,4419.5,4419.3,0.00209414]
[1759896684780,2.89879882,4419.5,4417.8,3.2078]
[1759896684974,2.89879882,4419.5,4417.4,3.61308145]
[1759896684975,3.7043,4419.7,4419.1,0.40711]
[1759896685177,3.7043,4419.7,4419.5,0.40707]
[1759896685384,0.7102,4420.2,4419.1,2.48935226]
[1759896685589,0.7102,4420.2,4420.0,0.40703]
[1759896685886,3.2078,4420.1,4419.3,0.40709]
[1759896686196,3.2078,4420.1,4419.4,0.40708]
[1759896686385,0.4965,4420.0,4419.7,0.40706]
[1759896686590,0.4965,4420.0,4419.1,43.52219516]
[1759896686591,0.4965,4420.0,4419.9,0.40704]
[1759896687484,0.4965,4420.4,4420.2,0.40701]
[1759896687884,3.7043,4420.6,4420.2,0.40701]
[1759896688088,0.4965,4420.4,4420.2,0.40701]
[1759896688488,0.4965,4420.4,4419.3,1.01774]
[1759896688791,3.2078,4420.6,4420.4,0.40699]
[1759896689385,3.7043,4420.6,4420.4,0.40699]
[1759896689697,3.2078,4420.6,4420.4,0.40699]
[1759896689887,3.7043,4421.2,4420.7,0.40696]
[1759896690083,3.7043,4421.2,4420.1,5.98229881]
[1759896690084,3.7043,4421.2,4420.8,0.40695]
[1759896690280,3.9343,4421.2,4420.5,0.40698]
[1759896690486,3.2078,4420.7,4420.4,0.40699]
[1759896690688,3.2078,4420.7,4420.5,0.40698]
[1759896691495,3.2078,4420.7,4420.3,0.407]
[1759896691792,3.2078,4420.7,4420.5,0.40698]
[1759896692196,3.2078,4420.7,4420.4,0.40699]
[1759896692595,3.2078,4420.7,4420.5,0.40698]
[1759896692984,3.2078,4420.7,4419.9,40.8]
[1759896692985,0.407,4420.4,4419.9,40.8]
[1759896693185,3.2078,4420.6,4419.9,40.8]
[1759896693386,3.2078,4420.6,4420.4,0.40699]
[1759896694488,3.2078,4420.6,4419.6,1.60319634]
[1759896694688,3.2078,4420.6,4419.7,0.40706]
[1759896694689,3.2078,4420.1,4419.7,0.40706]
[1759896694890,3.2078,4420.6,4420.1,0.40702]
[1759896695091,3.2078,4420.6,4419.9,2.77449881]
[1759896695092,3.2078,4420.6,4420.4,0.40699]
[1759896696495,3.2078,4420.6,4420.4,3.24768881]
[1759896696696,3.2078,4420.6,4420.5,0.229]
[1759896696893,3.2078,4420.6,4420.5,0.2952]
[1759896697097,3.2078,4421.1,4420.5,0.2952]
[1759896697296,0.2137,4421.4,4420.5,0.2952]
[1759896697499,3.21068657,4421.6,4420.9,2.12209107]
[1759896697793,3.21068657,4421.6,4421.0,0.229]
[1759896697994,3.21068657,4421.6,4421.4,0.4731]
[1759896698688,3.21068657,4421.6,4421.5,0.2952]
[1759896699798,3.8127,4422.2,4422.1,0.40684]
[1759896700095,0.2526,4421.5,4421.2,3.2078]
[1759896700298,0.6049,4421.4,4421.3,0.229]
[1759896700499,0.2526,4421.5,4421.3,0.229]
[1759896700800,0.2547389,4421.5,4421.3,0.63591]
[1759896700998,0.2547389,4421.5,4421.3,0.40691]
[1759896701192,0.6049,4421.4,4421.3,0.40691]
[1759896703002,0.2547389,4421.5,4421.3,5.40691]
[1759896703294,0.2526,4422.0,4421.8,0.40687]
[1759896703495,0.6049,4421.9,4421.8,0.40687]
[1759896703702,0.6049,4421.9,4421.8,0.229]
[1759896703897,0.6049,4421.9,4421.8,0.63587]
[1759896704096,0.60680313,4421.9,4421.8,0.229]
[1759896704800,0.60680313,4421.9,4421.8,41.029]
[1759896705303,0.2526,4422.0,4421.9,0.40686]
[1759896705497,0.2526,4422.5,4422.4,0.40681]
[1759896705697,0.2526,4422.5,4422.4,0.63581]
[1759896706108,0.2526,4422.5,4422.4,41.43581]
[1759896706294,0.6049,4422.9,4422.8,0.40677]
[1759896706500,0.60751223,4422.9,4422.8,0.63577]
[1759896707105,3.2078,4423.2,4423.1,0.40675]
[1759896707296,0.2526,4423.0,4422.9,0.40676]
[1759896707496,0.6049,4422.9,4422.8,40.8]
[1759896708094,0.60695396,4422.9,4422.8,40.80283695]
[1759896708797,0.60695396,4422.9,4422.8,43.57733576]
[1759896709405,0.00205396,4422.9,4422.8,48.57733576]
[1759896709798,0.8575,4423.5,4423.4,0.40672]
[1759896710002,0.8575,4423.5,4423.4,3.41021881]
[1759896710701,0.8575,4423.5,4423.4,44.21021881]
[1759896710906,0.8575,4423.5,4422.8,0.00283695]
[1759896710907,0.2526,4423.0,4422.8,0.00283695]
[1759896711103,0.6049,4422.9,4422.8,0.00283695]
[1759896711310,0.6049,4422.9,4422.8,3.43963695]
[1759896711506,0.6049,4422.9,4422.8,0.23183695]
[1759896712708,0.6049,4422.9,4422.8,2.54311921]
[1759896713421,0.6049,4422.9,4422.1,0.63583]
[1759896713422,0.6049,4422.4,4422.1,0.63583]
[1759896713615,0.6049,4422.4,4422.2,0.229]
[1759896713817,0.2526,4421.5,4421.2,3.2078]
[1759896714119,0.8575,4421.5,4421.4,0.4069]
[1759896714322,0.6049,4421.4,4421.3,0.229]
[1759896714820,0.6049,4421.4,4421.3,41.029]
[1759896715513,0.2526,4421.5,4421.4,0.4069]
[1759896715814,0.2526,4421.5,4420.7,2.49192669]
[1759896715815,0.2526,4421.0,4420.7,2.49192669]
[1759896716012,0.6049,4420.9,4420.8,0.229]
[1759896716212,0.6049,4420.9,4420.8,41.029]
[1759896716417,0.2526,4421.0,4420.8,46.43596]
[1759896716613,0.8575,4421.0,4420.8,46.43596]
[1759896716824,0.6049,4420.9,4420.8,46.03135015]
[1759896717223,0.6049,4420.9,4420.8,40.80235015]
[1759896717417,0.6049,4420.9,4420.8,41.43831015]
[1759896718610,0.8575,4421.0,4420.8,41.43831015]
[1759896718921,0.6049,4420.9,4420.8,0.63831015]
[1759896719917,0.2526,4421.0,4420.8,41.43831015]
[1759896720619,0.2526,4421.5,4421.3,0.4069]
[1759896720821,0.2526,4422.0,4421.4,3.41807933]
[1759896721022,0.2526,4422.0,4421.9,0.40686]
[1759896721221,3.2078,4422.6,4422.4,0.40681]
[1759896721429,0.2526,4423.0,4422.4,0.63581]
[1759896721625,0.2526,4423.0,4422.9,0.40676]
[1759896721929,0.2526,4423.0,4422.9,0.229]
[1759896722124,0.2526,4423.0,4422.9,0.63576]
[1759896722919,0.2526,4423.0,4422.8,3.2078]
[1759896723123,0.2526,4423.0,4422.3,2.69932159]
[1759896723124,0.2526,4423.0,4422.9,0.229]
[1759896723515,0.2526,4422.5,4422.3,0.229]
[1759896723828,0.6049,4422.4,4422.3,0.229]
[1759896724414,0.2526,4422.5,4422.4,0.40681]
[1759896724615,0.2526,4422.5,4422.4,44.39588933]
[1759896724826,0.8575,4423.0,4422.9,0.40676]
[1759896725128,0.2526,4423.0,4422.9,0.229]
[1759896725319,0.85979108,4423.5,4422.9,0.229]
[1759896725621,0.00229108,4423.5,4423.4,0.40672]
[1759896725824,0.00229108,4423.5,4423.4,41.43572]
[1759896726421,0.2526,4424.0,4423.9,0.40667]
[1759896726727,3.2078,4424.9,4424.6,0.4066]
[1759896726916,3.8006,4424.9,4424.8,0.40659]
[1759896727321,3.2078,4425.4,4424.8,41.20911797]
[1759896727523,3.2078,4425.4,4425.2,0.40654]
[1759896727831,3.8006,4425.4,4425.3,0.229]
[1759896728031,0.2606,4425.5,4425.3,0.229]
[1759896728233,0.2606,4425.5,4425.3,41.43554]
[1759896728527,0.26299137,4425.5,4425.3,41.43554]
[1759896729928,0.2606,4426.0,4425.3,41.029]
[1759896730122,0.2606,4425.5,4425.3,41.43554]
[1759896730929,0.00276287,4425.5,4425.3,41.43554]
[1759896731123,0.00276287,4425.5,4425.4,0.229]
[1759896733030,0.2606,4426.0,4425.9,0.40649]
[1759896733230,0.2606,4426.0,4425.9,0.63549]
[1759896733426,0.8534,4426.0,4425.9,0.63549]
[1759896733827,0.5928,4425.9,4425.5,3.2078]
[1759896734026,0.5928,4425.9,4424.8,0.00252797]
[1759896734027,0.5928,4425.4,4424.9,2.48882226]
[1759896734228,0.5928,4425.4,4425.0,0.229]
[1759896734729,0.5928,4425.4,4425.3,0.40654]
[1759896734930,0.5928,4425.4,4425.3,0.63554]
[1759896735432,3.2078,4426.9,4426.2,0.40646]
[1759896735734,3.2078,4426.9,4426.3,0.63545]
[1759896736033,3.2078,4426.9,4426.4,0.63544]
[1759896736228,3.2078,4426.9,4426.4,0.229]
[1759896736422,3.2078,4426.9,4425.3,40.8]
[1759896736423,0.40642,4426.7,4426.5,0.229]
[1759896736626,0.40642,4426.7,4426.6,0.229]
[1759896737029,0.2606,4426.0,4425.8,3.2078]
[1759896737231,0.2606,4426.0,4425.9,0.228]
[1759896737635,3.2078,4426.4,4425.9,0.228]
[1759896738232,0.8534,4426.0,4425.3,3.2078]
[1759896738435,0.8534,4426.0,4425.4,0.228]
[1759896738624,0.5928,4425.4,4425.3,3.2078]
[1759896738826,0.5928,4425.4,4425.3,3.4358]
[1759896739224,0.2606,4425.5,4425.3,3.4358]
[1759896739430,3.29692362,4431.1,4429.0,10.15521]
[1759896739623,0.2606,4432.0,4431.0,3.18907933]
[1759896739828,0.0346,4432.5,4431.9,4.39300011]
[1759896740034,0.2606,4432.0,4431.9,3.18907933]
[1759896740230,0.0346,4432.5,4431.9,3.50205999]
[1759896740427,0.2606,4432.4,4432.2,1.00566736]
[1759896740632,0.2606,4432.4,4432.3,4.36121823]
[1759896740932,0.2606,4432.4,4432.3,0.9441389]
[1759896741232,0.2606,4432.4,4432.3,4.13321823]
[1759896741432,0.2606,4433.0,4432.5,0.40588]
[1759896741627,0.02402512,4432.9,4432.8,3.2078]
[1759896741828,0.02402512,4432.9,4432.8,4.1519389]
[1759896742238,0.02402512,4432.9,4432.8,7.56901823]
[1759896742434,0.2606,4433.5,4432.8,4.48540284]
[1759896742729,0.2606,4433.5,4432.9,1.27760284]
[1759896742730,0.40584,4433.0,4432.9,1.27760284]
[1759896743128,8.35419046,4433.0,4432.9,0.96462218]